Cogmind - Beta 9.6 @@@ ROGUE MODE // 2020.05.14 @ 21:57:07 // Halloween2019/Abominations Player: Pakabot Result: Destroyed by Lesser Abomination with Etherial Claws Performance ------------- Evolutions (2) 1000 Regions Visited (3) 600 Robots Destroyed (22) 110 Value Destroyed (646) 646 Prototype IDs (0) 0 Alien Tech Used (0) 0 Bonus (0) 0 TOTAL SCORE: 2356 Bonus ------- None Cogmind --------- Core Integrity 0/550 Matter 193/300 Energy 100/100 System Corruption 0% Temperature Cool (0) Movement Core (400) Ox7 Location -8/Materials Parts ------- > --- POWER (3) -------- (None) > --- PROPULSION (2) --- (None) > --- UTILITY (3) ------ Medium Storage Unit Large Storage Unit > --- WEAPON (3) ------- (None) > --- INVENTORY (14) --- (None) Peak State ------------ > --- POWER ------------ (None) > --- PROPULSION ------- Armored Treads Armored Treads > --- UTILITY ---------- Small Storage Unit Medium Storage Unit Large Storage Unit > --- WEAPON ----------- Light EM Pulse Cannon > --- INVENTORY -------- (None) [Rating: 11] Favorites ----------- Power Light Ion Engine Engine Light Ion Engine Propulsion Aluminum Leg Treads Armored Treads Leg Aluminum Leg Utility Small Storage Unit Storage Small Storage Unit Protection Light Armor Plating Weapon Light Assault Rifle Energy Gun Medium Laser Energy Cannon Light EM Pulse Cannon Ballistic Gun Light Assault Rifle Ballistic Cannon Light Cannon Launcher Grenade Launcher Special Weapon Mining Laser Build | -11 -10 -9 -8 ------- Run | Scr Mat Mat Mat Slots Evolved 4 | . . 2 2 Power 2 | . . . 2 Propulsion . | . . . . Utility 1 | . . 1 . Weapon 1 | . . 1 . Parts Attached 25 | 7 7 3 8 Power 3 | 2 1 . . Engine 3 | 2 1 . . Core . | . . . . Reactor . | . . . . Propulsion 8 | 2 2 . 4 Treads 2 | . . . 2 Leg 6 | 2 2 . 2 Wheel . | . . . . Hover . | . . . . Flight . | . . . . Utility 4 | 1 1 . 2 Device . | . . . . Storage 3 | 1 . . 2 Processor . | . . . . Hackware . | . . . . Protection 1 | . 1 . . Artifact . | . . . . Weapon 10 | 2 3 3 2 Energy Gun 1 | . . 1 . Energy Cannon 1 | . . . 1 Ballistic Gun 3 | 2 1 . . Ballistic Cannon 2 | . 1 1 . Launcher 2 | . 1 . 1 Special Weapon 1 | . . 1 . Impact Weapon . | . . . . Slashing Weapon . | . . . . Piercing Weapon . | . . . . Special Melee Weapon . | . . . . Unidentified Prototypes . | . . . . Parts Lost 16 | . 2 7 7 Power 2 | . 1 1 . Propulsion 6 | . . 2 4 Utility 2 | . 1 . 1 Weapon 6 | . . 4 2 Highest Loss Streak 4 | . 2 4 4 Average Slot Usage (%) 72 | . 87 48 40 Engine 10 | . 13 6 . Leg 22 | . 27 17 6 Storage 15 | . 14 11 26 Protection 1 | . 2 . . Energy Gun 1 | . . 6 . Ballistic Gun 10 | . 16 . . Ballistic Cannon 3 | . 3 2 . Launcher 6 | . 7 3 3 Naked Turns . | . . . . Heaviest Build 32 | 11 16 12 32 Greatest Support 40 | 20 20 20 40 Greatest Overweight (x) 9 | 1 1 1 9 Average Overweight (x) . | . . . 2 Largest Inventory Capacity 16 | 6 6 6 16 Average Capacity 7 | 4 6 6 15 Most Carried 6 | 4 6 5 3 Average Carried 3 | 1 4 3 1 Final Capacity 14 | 6 6 6 14 Final Carried 5 | 2 5 2 . Class Distribution -------------------- 100% | Mutant Dominant Class ---------------- Mutant | -10/Materials Mutant | -9/Materials Mutant | -8/Materials Resources | -11 -10 -9 -8 ----------- Run | Scr Mat Mat Mat Matter Collected 597 | 215 330 52 . Remotely . | . . . . Salvage Created 414 | . 367 33 14 Parts 43 | . 36 6 1 Haulers Intercepted . | . . . . Recyclers Shooed . | . . . . Parts Field Recycled . | . . . . Retrieved Matter . | . . . . Parts Self-Destructed . | . . . . Prevented . | . . . . Kills | -11 -10 -9 -8 ------- Run | Scr Mat Mat Mat Combat Hostiles Destroyed 18 | . 16 1 1 Guns 7 | . 7 . . Cannons 6 | . 5 1 . AOE 5 | . 4 . 1 Classes Destroyed 7 | . 7 . . Worker 1 | . 1 . . Mechanic 1 | . 1 . . Watcher 1 | . 1 . . Swarmer 9 | . 9 . . Grunt 4 | . 4 . . Abomination 5 | . 3 1 1 Anomaly 1 | . 1 . . Best Kill Streak 8 | . 8 1 1 Combat Bots Only 6 | . 6 1 1 Max Kills in Single Turn 3 | . 3 1 1 Gunslinging . | . . . . Exploded 2 | . 2 . 1 Melee . | . . . . Uniques/NPCs Destroyed . | . . . . Combat | -11 -10 -9 -8 -------- Run | Scr Mat Mat Mat Damage Taken 3219 | . 642 687 1890 Core 846 | . 63 228 555 Absorbed by Shields . | . . . . Core Remaining (%) 72 | 100 74 43 . Volleys Fired 78 | . 45 19 14 Largest 2 | . 2 1 1 Hottest 100 | . 55 100 56 Shots Fired 115 | . 82 19 14 Gun 53 | . 51 2 . Cannon 42 | . 26 14 2 Launcher 17 | . 5 . 12 Special 3 | . . 3 . Kinetic 91 | . 77 14 . Thermal 5 | . . 5 . Explosive 17 | . 5 . 12 Electromagnetic 2 | . . . 2 Robot Hit Streak 7 | . 7 5 6 Robot Miss Streak 5 | . 5 4 2 Penetration Max . | . . . . Secondary Targets . | . . . . Shots Hit Robots 61 | . 41 11 9 Core Hits 50 | . 34 6 10 Critical Hits 1 | . . 1 . Critical Kills . | . . . . Critical Parts Destroyed 1 | . . 1 . Melee Attacks . | . . . . Impact . | . . . . Slashing . | . . . . Piercing . | . . . . Sneak Attacks . | . . . . Combat Hostiles . | . . . . Follow-up Attacks . | . . . . Damage Inflicted 1631 | . 743 263 625 Guns 240 | . 228 12 . Cannons 439 | . 243 186 10 Explosions 850 | . 270 . 580 Melee . | . . . . Ramming 42 | . 2 5 35 Kinetic 657 | . 471 186 . Thermal 72 | . . 72 . Explosive 850 | . 270 . 580 Electromagnetic 10 | . . . 10 Impact . | . . . . Slashing . | . . . . Piercing . | . . . . Highest Corruption . | . . . . Average Corruption . | . . . . Corruption Purged . | . . . . Overload Shots . | . . . . Overflow Damage 35 | . 7 . 28 Projectiles . | . . . . Explosions 35 | . 7 . 28 Melee . | . . . . Knockbacks 7 | . 3 3 1 Impact 1 | . . . 1 Kinetic 6 | . 3 3 . Secondary . | . . . . Self-Inflicted Damage 8 | . 1 2 5 Shots . | . . . . Rammed 20 | . 1 3 16 Targets Rammed 20 | . 1 3 16 Kicked . | . . . . Crushed . | . . . . Highest Temperature 52 | . 52 4 9 Average Temperature 15 | . 16 3 6 Received Heat Transfer 318 | . 66 . 252 Siege Activations . | . . . . Robots Corrupted . | . . . . Combat Hostiles . | . . . . Parts Fried . | . . . . Impact Corruptions . | . . . . Robots Melted . | . . . . Combat Hostiles . | . . . . Parts Melted . | . . . . Heat Transferred 61 | . . 61 . Parts Sabotaged . | . . . . Parts Stolen . | . . . . Parts Stripped . | . . . . Power Chain Reactions . | . . . . Missiles Intercepted . | . . . . Alert | -11 -10 -9 -8 ------- Run | Scr Mat Mat Mat Peak Influence 207 | . 207 30 58 Average Influence 39 | . 58 8 9 Maximum Alert Level 1 | . 1 . . Low Security (%) 99 | 100 99 100 100 Level 1 . | . . . . Level 2 . | . . . . Level 3 . | . . . . Level 4 . | . . . . Level 5 . | . . . . High Security . | . . . . Max Security . | . . . . Squads Dispatched 18 | . 3 8 7 Investigation 4 | . . 3 1 Extermination . | . . . . Reinforcement 9 | . 3 4 2 Assault 4 | . . 1 3 Garrison 1 | . . . 1 Intercept . | . . . . Construction Impeded . | . . . . Haulers Reinforced . | . . . . Stealth | -11 -10 -9 -8 --------- Run | Scr Mat Mat Mat Distress Signals 11 | . 1 4 6 Communications Jammed . | . . . . Distress Signals . | . . . . Times Spotted 37 | . 29 5 3 Peak Tracking Total 7 | . 7 6 2 Tactical Retreats 4 | . 3 1 . Traps | -11 -10 -9 -8 ------- Run | Scr Mat Mat Mat Traps Triggered 1 | . 1 . . Indirectly . | . . . . Trap Hack Attempts . | . . . . Triggered . | . . . . Disarmed . | . . . . Reprogrammed . | . . . . Reused . | . . . . Traps Extracted . | . . . . Installed . | . . . . Triggered . | . . . . Machines | -11 -10 -9 -8 ---------- Run | Scr Mat Mat Mat Machines Disabled 7 | . 4 1 2 Max in Single Turn 3 | . 3 1 1 Garrison Access 1 | . . . 1 Machines Sabotaged . | . . . . Garrisons Compromised . | . . . . Overloaded Fab Kills . | . . . . Fab Network Shutdowns . | . . . . Hacking | -11 -10 -9 -8 --------- Run | Scr Mat Mat Mat Machines Accessed . | . . . . Terminals . | . . . . Fabricators . | . . . . Repair Stations . | . . . . Recycling Units . | . . . . Scanalyzers . | . . . . Garrison Access . | . . . . Total Hacks . | . . . . Successful . | . . . . Failed . | . . . . Catastrophic . | . . . . Database Lockouts . | . . . . Manual . | . . . . Terminals . | . . . . Fabricators . | . . . . Repair Stations . | . . . . Recycling Units . | . . . . Scanalyzers . | . . . . Garrison Access . | . . . . Terminal Hacks . | . . . . Fabricator Hacks . | . . . . Repair Station Hacks . | . . . . Recycling Unit Hacks . | . . . . Scanalyzer . | . . . . Garrison Access Hacks . | . . . . Unauthorized Hacks . | . . . . Terminals . | . . . . Fabricators . | . . . . Repair Stations . | . . . . Recycling Units . | . . . . Scanalyzers . | . . . . Garrison Access . | . . . . Data Cores Recovered . | . . . . Used . | . . . . Hacking Detections . | . . . . Full Trace Events . | . . . . Feedback Events . | . . . . Feedback Blocked . | . . . . Robot Schematics Acquired . | . . . . Robots Built . | . . . . Matter . | . . . . Time . | . . . . Total Robot Build Rating . | . . . . Part Schematics Acquired . | . . . . Parts Built . | . . . . Matter . | . . . . Time . | . . . . Total Part Build Rating . | . . . . Parts Repaired . | . . . . Time . | . . . . Parts Recycled . | . . . . Recycled Matter . | . . . . Retrieved Matter . | . . . . Retrieved Components . | . . . . Parts Scanalyzed . | . . . . Part Schematics Acquired . | . . . . Parts Damaged . | . . . . Bothacking | -11 -10 -9 -8 ------------ Run | Scr Mat Mat Mat Used RIF Installer . | . . . . Robots Hacked . | . . . . Non-combat . | . . . . Combat . | . . . . Robot Hacks Applied . | . . . . Relay Couplers Released . | . . . . Robots Rewired . | . . . . Allies Hacked . | . . . . Hacks Repelled . | . . . . Allies | -11 -10 -9 -8 -------- Run | Scr Mat Mat Mat Total Allies . | . . . . Largest Group . | . . . . Highest-Rated Group . | . . . . Highest-Rated Ally . | . . . . Total Orders . | . . . . Ally Attacks . | . . . . Total Damage . | . . . . Kills . | . . . . Allies Corrupted . | . . . . Allies Melted . | . . . . Intel | -11 -10 -9 -8 ------- Run | Scr Mat Mat Mat Robot Analysis Total . | . . . . Derelict Logs Recovered . | . . . . Drone Launches . | . . . . Drone Recoveries . | . . . . Exploration | -11 -10 -9 -8 ------------- Run | Scr Mat Mat Mat Turns Passed 1748 | 96 1086 297 269 Spaces Moved 1028 | 59 779 104 86 Core 91 | 27 . 40 24 Treads 17 | . . . 17 Legs 920 | 32 779 64 45 Wheels . | . . . . Hover . | . . . . Flight . | . . . . Fastest Speed 50 | 50 120 100 100 Average Speed 126 | 92 120 112 224 Slowest Speed 500 | 120 150 120 500 Overloaded Moves . | . . . . Propulsion Burnouts . | . . . . Robots Hopped . | . . . . Cave-ins Triggered . | . . . . Exploration Rate (%) 23 | 5 65 13 10 Regions Visited 3 Branch Regions . Pre-discovered Areas . | . . . . Known Exits Taken . | . . . . Unknown Exits Taken 3 | 1 1 1 . Scrap Searched . | . . . . Spaces Dug . | . . . . Terrain Destroyed 49 | . 20 . 29 Melee . | . . . . Projectile . | . . . . AOE 49 | . 20 . 29 Actions | -11 -10 -9 -8 --------- Run | Scr Mat Mat Mat Total 1340 | 101 850 259 130 Wait 168 | 27 11 130 . Move 1020 | 58 773 103 86 Hop . | . . . . Pick Up 22 | 8 8 . 6 Fast Attach . | . . . . Attach 25 | 7 7 3 8 Detach 3 | 1 2 . . Swap . | . . . . Drop 4 | . 3 1 . Fire 78 | . 45 19 14 Melee . | . . . . Ram 6 | . . 3 3 Kick 4 | . 1 . 3 Crush 10 | . . . 10 Escape Stasis . | . . . . Rewire . | . . . . Trap . | . . . . Miscellaneous . | . . . . Route ------- -11/Scrapyard -10/Materials (discovered 2 exits: [*Mat x2]) -9/Materials -8/Materials History --------- Turn | Location | Event 5 | -11/Scrapyard | Discovered new exit (range 16) 97 | -11/Scrapyard | Entered Materials 303 | -10/Materials | Build established: Mutant 395 | -10/Materials | Discovered new exit (range 15) 612 | -10/Materials | Discovered new exit (range 13) 893 | -10/Materials | Discovered new exit (range 14) 1171 | -10/Materials | Discovered new exit (range 9) 1183 | -10/Materials | Entered another Materials area 1183 | -9/Materials | Evolved 2 slots: Utility x1, Weapon x1 1462 | -9/Materials | Core integrity fell below 50% 1462 | -9/Materials | Discovered new exit (range 16) 1467 | -9/Materials | Lost 4 parts (2n2w) 1480 | -9/Materials | Entered another Materials area 1480 | -8/Materials | Evolved 2 slots: Power x2 1502 | -8/Materials | Garrison activated, responded to threat 1713 | -8/Materials | Lost 3 parts (2n1w) 1733 | -8/Materials | Core integrity fell below 50% 1744 | -8/Materials | Core integrity fell below 20% 1749 | -8/Materials | Destroyed by Lesser Abomination with Etherial Claws Last Messages --------------- Mni. Grenade Launcher destroyed. ALERT: Dispatching additional forces to engage threats. The unstable cave ceiling collapses. Slammed into Lesser Abomination. Lesser Abomination follow-up attacks with Axe. The unstable cave ceiling collapses. Lesser Abomination follow-up attacks with Axe. Acquired Lgt. EM Pulse Cannon. Slammed into Lesser Abomination. Arm. Treads destroyed. Lgt. EM Pulse Cannon destroyed. Slammed into Lesser Abomination. ALERT: Dispatching additional forces to engage threats. Slammed into Lesser Abomination. Sml. Storage Unit destroyed. Slammed into Lesser Abomination. Arm. Treads destroyed. Slammed into Lesser Abomination. Lesser Abomination knocked back. Slammed into Lesser Abomination. Map ----- +----------------------------------------------------+ | | | | | | | | | | | | | ?????????????????#### ## ####????????????????? | | ?????????????????# #????????????????? | | ?????????????????# # #????????????????? | | ##???????######### #????????????????? | | ##??????# ## #% #????????????????? | | !#??????# ## #????????????????? | | !#??????# ## ###??????????????? | | #####??# ## # # #??????????????? | | #??# == #### # ##??????????????? | | #### = # ###????????????? | | + = + n #????????????? | | ####+##### # ## #????????????? | | ?????????# ######## ##???????????????? | | ?????????# ## "" = # ##????????????????? | | ?????????# ## ""S % ### ##?????????????????? | | ?????????# ## "" A +?? #??????????????????? | | ?????????# ## #???#??????????????????? | | ?????????######### #??????????????????????? | | ?????????????????# % #??????????????????????? | | ?????????????????# ] @#??????????????????????? | | ?????????????????# ] A#??????????????????????? | | ????????????????# #??????????????????????? | | ????????????????###########??????????????????????? | | ?????????????????????????????????????????????????? | | ?????????????????????????????????????????????????? | | ?????????????????????????????????????????????????? | | ?????????????????????????????????????????????????? | | ?????????????????????????????????????????????????? | | ?????????????????????????????????????????????????? | | ?????????????????????????????????????????????????? | | ?????????????????????????????????????????????????? | | ?????????????????????????????????????????????????? | | ?????????????????????????????????????????????????? | | ?????????????????????????????????????????????????? | | ?????????????????????????????????????????????????? | | ?????????????????????????????????????????????????? | | ?????????????????????????????????????????????????? | | ?????????????????????????????????????????????????? | | ?????????????????????????????????????????????????? | | ?????????????????????????????????????????????????? | | ?????????????????????????????????????????????????? | | ?????????????????????????????????????????????????? | | ?????????????????????????????????????????????????? | | ?????????????????????????????????????????????????? | +----------------------------------------------------+ Best States ------------- Heat Dissipation 31 Energy Generation 10 Energy Capacity 250 Matter Stores 300 Matter Capacity 300 Sight Range 16 Terrain Scan Density 10 Armor Coverage 150 Evasion (%) 40 Recoil Reduction 2 Item Schematics ----------------- None Robot Schematics ------------------ None Fabricated ------------ Nothing Alien Tech Used ----------------- None Achievements -------------- None Challenges ------------ None Game ------ Seed MetafieldRecyclingWand Manual? 0 Play Time 00:16:00 Cumulative 4.9 hours Start 2020.05.14 @ 21:43:42 End 2020.05.14 @ 21:57:07 Sessions 1 Manual Loads 0 Difficulty Rogue Special Mode Halloween2019/Abominations Game No. 16 Rogue 16 Adventurer 0 Explorer 0 Win Type - Total 0 Types 0/0/0/0/0/0/0 Lore% 3 Gallery% 10 Achievement% 10 Wizard Run 0 Options --------- ASCII 0 Keyboard 0 Movement Arrows Keybinds 0 Fullscreen 1 Font 18/SmallcapsGlow Map View 76x50 Tactical HUD 0 Map Filters NONE Filters NONE Steam 1 RUN: 4fb2fbf0-9fd8-4904-af91-8770c58572ab